Cogmind - Beta 13 @@@ ROGUE MODE // 2024.05.01 @ 14:50:54 Player: Barbarossa Result: Destroyed by S-27 Virus with Autogun Performance ------------- Evolutions (3) 1500 Regions Visited (6) 1200 Robots Destroyed (132) 660 Value Destroyed (4583) 4583 Prototype IDs (9) 180 Alien Tech Used (0) 0 Bonus (1054) 1054 TOTAL SCORE: 9177 Bonus ------- High Alert Combat Kills 1002 Follower Combat Kills 70 Friendly Fire -18 Cogmind --------- Core Integrity 0/700 Matter 98/300 Energy 296/300 System Corruption 17% Temperature Cool (0) Movement Treading (165) Location -7/Factory Parts ------- > --- POWER (2) -------- Enhanced Nuclear Core > --- PROPULSION (4) --- Armored Treads Enhanced Armored Medium Treads Armored Huge Wheel > --- UTILITY (3) ------ Advanced Heat Sink Large Storage Unit Hardened Medium Armor Plating > --- WEAPON (4) ------- Flak Gun Enhanced Coil Gun > --- INVENTORY (15) --- Armored Treads Armored Treads Medium Matter Pod (100) Advanced Visual Processing Unit Improved Signal Interpreter Advanced Targeting Computer Recoil Stabilizer Weapon Cycler Transmission Jammer Medium Armor Plating Mini Drone Bay (3/3) Beam Rifle Improved Datajack Plasma Cutter Peak State ------------ > --- POWER ------------ Light Nuclear Core Mini Fusion Reactor > --- PROPULSION ------- Armored Treads Enhanced Armored Medium Treads Enhanced Armored Medium Treads Enhanced Armored Medium Treads > --- UTILITY ---------- Improved Heat Sink Advanced Heat Sink Large Storage Unit > --- WEAPON ----------- Enhanced Coil Gun Enhanced Coil Gun Enhanced Coil Gun Enhanced Coil Gun > --- INVENTORY -------- Light Nuclear Core Armored Treads Armored Treads Medium Matter Pod Advanced Visual Processing Unit Improved Signal Interpreter Advanced Targeting Computer Recoil Stabilizer Weapon Cycler Transmission Jammer Improved Medium Armor Plating Mini Drone Bay Improved Heavy Machine Gun Improved Datajack Plasma Cutter [Rating: 80] Favorites ----------- Power Light Deuterium Engine Engine Light Deuterium Engine Power Core Light Nuclear Core Reactor Mini Fusion Reactor Propulsion Armored Treads Treads Armored Treads Leg Aluminum Leg Wheel Armored Huge Wheel Hover Unit Improved Hover Unit Utility Large Storage Unit Device Improved Heat Sink Storage Large Storage Unit Processor Signal Interpreter Protection Layered Light Armor Plating Weapon Enhanced Coil Gun Energy Gun Small Laser Energy Cannon Ion Burst Cannon Ballistic Gun Enhanced Coil Gun Ballistic Cannon Improved Light Cannon Launcher Grenade Launcher Special Weapon Plasma Cutter Build | -11 -10 -9 -8 -7 -7 -7 ------- Run | Yrd Mat Mat Mat Fac Was Fac Slots Evolved 6 | . . 2 2 2 . . Power 1 | . . . 1 . . . Propulsion 2 | . . 2 . . . . Utility 1 | . . . 1 . . . Weapon 2 | . . . . 2 . . Parts Attached 125 | . 10 13 37 57 4 4 Power 19 | . 1 1 6 11 . . Engine 10 | . 1 1 4 4 . . Core 8 | . . . 2 6 . . Reactor 1 | . . . . 1 . . Propulsion 40 | . 4 7 15 10 2 2 Treads 24 | . . 4 10 8 . 2 Leg 2 | . 2 . . . . . Wheel 4 | . . . . 2 2 . Hover 10 | . 2 3 5 . . . Flight . | . . . . . . . Utility 23 | . 1 1 5 14 1 1 Device 14 | . 1 1 3 9 . . Storage 2 | . . . 1 1 . . Processor 1 | . . . 1 . . . Hackware . | . . . . . . . Protection 6 | . . . . 4 1 1 Artifact . | . . . . . . . Weapon 43 | . 4 4 11 22 1 1 Energy Gun 11 | . 2 2 7 . . . Energy Cannon 1 | . . . . 1 . . Ballistic Gun 18 | . . 1 3 12 1 1 Ballistic Cannon 6 | . . . 1 5 . . Launcher 6 | . 2 1 . 3 . . Special Weapon 1 | . . . . 1 . . Impact Weapon . | . . . . . . . Slashing Weapon . | . . . . . . . Piercing Weapon . | . . . . . . . Special Melee Weapon . | . . . . . . . Unidentified Prototypes 9 | . . . 3 6 . . Parts Lost 47 | . 5 . 15 24 3 . Power 10 | . 1 . 4 4 1 . Propulsion 17 | . 2 . 7 6 2 . Utility 7 | . . . 2 5 . . Weapon 13 | . 2 . 2 9 . . Highest Loss Streak 11 | . 3 . 5 11 2 . To Critical Strikes . | . . . . . . . Average Slot Usage (%) 87 | . 88 95 80 92 59 69 Engine 8 | . 11 11 9 7 2 . Core 2 | . . . . 4 7 7 Reactor 1 | . . . . 2 . . Treads 21 | . . 22 25 24 3 15 Leg 1 | . 18 . . . . . Wheel 1 | . . . . 1 7 7 Hover 3 | . 7 22 4 . . . Device 10 | . 9 11 11 9 7 7 Storage 8 | . 14 11 9 7 7 7 Protection 2 | . . . . 3 7 7 Energy Gun 5 | . 14 10 12 . . . Ballistic Gun 14 | . 3 7 3 23 13 15 Ballistic Cannon 2 | . . . 1 3 . . Launcher 1 | . 9 . . . . . Naked Turns . | . . . . . . . Heaviest Build 65 | 10 14 14 30 65 65 46 Greatest Support 133 | 20 20 20 80 133 125 55 Greatest Overweight (x) 5 | . 2 . 1 5 2 . Average Overweight (x) . | . . . . . 1 . Largest Inventory Capacity 15 | . 8 8 10 15 15 15 Average Capacity 12 | . 8 8 9 14 15 15 Most Carried 15 | . 8 8 10 15 15 14 Average Carried 11 | . 7 7 8 13 14 12 Final Capacity 15 | 8 8 8 10 15 15 15 Final Carried 15 | 6 8 8 10 15 15 14 Class Distribution -------------------- 35% | Mutant 18% | Tank 15% | Gunner 14% | Scavenger-Mutant 8% | Scavenger-Tank 8% | Scavenger-Gunner Dominant Class ---------------- Mutant | -10/Materials Mutant | -9/Materials Mutant | -8/Materials Tank | -7/Factory Mutant | -7/Waste Mutant | -7/Factory Resources | -11 -10 -9 -8 -7 -7 -7 ----------- Run | Yrd Mat Mat Mat Fac Was Fac Matter Collected 3616 | 200 122 183 551 2560 . . Remotely 388 | . . . 240 148 . . Salvage Created 4923 | . 483 295 1168 2934 . 43 Parts 296 | . 33 14 61 186 . 2 Haulers Intercepted 5 | . . . 2 3 . . Recyclers Shooed 8 | . 1 . 6 1 . . Parts Field Recycled . | . . . . . . . Retrieved Matter . | . . . . . . . Parts Self-Destructed . | . . . . . . . Prevented . | . . . . . . . Kills | -11 -10 -9 -8 -7 -7 -7 ------- Run | Yrd Mat Mat Mat Fac Was Fac Combat Hostiles Destroyed 107 | . 10 9 22 64 . 2 Guns 87 | . 6 9 19 51 . 2 Cannons 7 | . . . 1 6 . . AOE 12 | . 4 . 1 7 . . Classes Destroyed 15 | . 4 2 5 4 . . Worker 8 | . 1 . . 7 . . Builder 12 | . . . 2 10 . . Hauler 5 | . . . 2 3 . . Recycler 2 | . 1 . 1 . . . Watcher 5 | . 3 . 1 1 . . Swarmer 22 | . . 3 3 14 . 2 Grunt 57 | . 10 5 12 30 . . Brawler 1 | . . 1 . . . . Duelist 3 | . . . 2 1 . . Protector 2 | . . . . 2 . . Sentry 6 | . . . 4 2 . . Specialist 4 | . . . . 4 . . Hunter 6 | . . . 1 5 . . Programmer 5 | . . . . 5 . . Heavy 1 | . . . . 1 . . Best Kill Streak 13 | . 5 3 7 13 . 2 Combat Bots Only 6 | . 4 3 4 6 . 2 Max Kills in Single Turn 3 | . 3 1 2 3 . 1 Gunslinging 1 | . . . 1 1 . . Exploded 3 | . 2 . 1 3 . . Melee . | . . . . . . . Uniques/NPCs Destroyed . | . . . . . . . Combat | -11 -10 -9 -8 -7 -7 -7 -------- Run | Yrd Mat Mat Mat Fac Was Fac Hostile Shots Fired 842 | . 63 54 180 524 4 17 Missed 259 | . 15 18 44 177 1 4 Damage Taken 9448 | . 593 411 2215 5881 157 191 Core 1125 | . 110 86 228 617 56 28 Absorbed by Shields . | . . . . . . . Regen/Repaired (Parts) 395 | . . . 198 197 . . Core Remaining (%) 73 | 100 56 78 58 . . . Volleys Fired 320 | . 42 44 94 135 1 4 Largest 4 | . 2 2 2 4 3 2 Hottest 156 | . 70 85 121 156 90 58 Shots Fired 780 | . 60 72 178 459 3 8 Gun 675 | . 54 72 162 376 3 8 Cannon 80 | . . . 16 64 . . Launcher 19 | . 6 . . 13 . . Special 6 | . . . . 6 . . Kinetic 549 | . 12 28 58 440 3 8 Thermal 193 | . 42 44 101 6 . . Explosive 19 | . 6 . . 13 . . Electromagnetic 19 | . . . 19 . . . Robot Hit Streak 15 | . 7 10 15 11 2 5 Robot Miss Streak 9 | . 4 2 5 9 1 3 Penetration Max 2 | . . . . 2 . . Secondary Targets 16 | . . 1 3 11 . 1 Max Gunslinging Chain 1 | . . 1 1 1 . 1 Shots Hit Robots 469 | . 34 52 116 259 2 6 Core Hits 300 | . 28 18 54 194 1 5 Critical Kills 8 | . . . . 8 . . Critical Parts Destroyed 8 | . . . . 8 . . Critical Strikes 22 | . . 1 4 17 . . Burn 4 | . . 1 3 . . . Destroy 16 | . . . . 16 . . Blast 2 | . . . 1 1 . . Melee Attacks . | . . . . . . . Impact . | . . . . . . . Slashing . | . . . . . . . Piercing . | . . . . . . . Sneak Attacks . | . . . . . . . Combat Hostiles . | . . . . . . . Follow-up Attacks . | . . . . . . . Damage Inflicted 13018 | . 747 554 2201 9341 57 118 Guns 9103 | . 323 554 1840 6211 57 118 Cannons 965 | . . . 197 768 . . Explosions 2928 | . 424 . 156 2348 . . Melee . | . . . . . . . Ramming 11 | . . . 8 3 . . Kinetic 8065 | . 68 203 640 6979 57 118 Thermal 1958 | . 255 351 1189 163 . . Explosive 2620 | . 424 . . 2196 . . Electromagnetic 364 | . . . 364 . . . Impact . | . . . . . . . Slashing . | . . . . . . . Piercing . | . . . . . . . Highest Corruption 17 | . . . 2 7 17 17 Average Corruption 6 | . . . 2 6 11 17 Corruption Purged 5 | . . . . 5 . . Corruption Blocked . | . . . . . . . Effects 68 | . . . 9 41 10 8 Message Errors 9 | . . . . 8 1 . Matter Fused 18 | . . . 2 12 1 3 Heat Flow Errors 8 | . . . . 6 1 1 Energy Discharges 7 | . . . 3 4 . . Parts Rejected 6 | . . . . 3 3 . Parts Fused 1 | . . . . 1 . . Data Loss (minor) 9 | . . . 4 3 1 1 Data Loss (major) 4 | . . . . 1 1 2 Misfires 2 | . . . . 2 . . Alerts 1 | . . . . . . 1 Misdirections 2 | . . . . . 2 . Weapon Failures 1 | . . . . 1 . . Overload Shots . | . . . . . . . Overflow Damage 130 | . . . 43 87 . . Projectiles . | . . . . . . . Explosions 130 | . . . 43 87 . . Melee . | . . . . . . . Knockbacks 13 | . . . 6 7 . . Impact 1 | . . . 1 . . . Kinetic 11 | . . . 5 6 . . Secondary 1 | . . . . 1 . . Self-Inflicted Damage 153 | . . . 93 60 . . Shots 3 | . . . 2 1 . . Rammed 4 | . . . 2 2 . . Targets Rammed 4 | . . . 2 2 . . Kicked . | . . . . . . . Crushed . | . . . . . . . Highest Temperature 433 | . 191 5 318 433 126 153 Average Temperature 105 | . 100 4 109 105 84 93 Received Heat Transfer 2664 | . 372 168 891 1233 . . Effects 8 | . . . 2 6 . . Shutdowns 2 | . . . . 2 . . Interference 2 | . . . 2 . . . Damage (minor) 1 | . . . . 1 . . Damage (major) 3 | . . . . 3 . . Siege Activations . | . . . . . . . Robots Corrupted . | . . . . . . . Combat Hostiles . | . . . . . . . Parts Fried 1 | . . . 1 . . . Impact Corruptions . | . . . . . . . Robots Melted 1 | . . . 1 . . . Combat Hostiles 1 | . . . 1 . . . Parts Melted 5 | . . 1 4 . . . Heat Transferred 4392 | . 575 883 2814 120 . . Parts Sabotaged . | . . . . . . . Parts Stolen . | . . . . . . . Parts Stripped . | . . . . . . . Power Chain Reactions 2 | . . . 2 . . . Alert | -11 -10 -9 -8 -7 -7 -7 ------- Run | Yrd Mat Mat Mat Fac Was Fac Peak Influence 1429 | . 317 150 291 1429 500 348 Initial 500 | . . 15 63 81 500 326 Average 409 | . 161 61 142 631 476 326 Maximum Alert Level 4 | . 1 . 1 4 2 1 Low Security (%) 44 | . 50 100 74 26 . . Level 1 21 | . 49 . 25 15 . 100 Level 2 10 | . . . . 13 100 . Level 3 9 | . . . . 18 . . Level 4 13 | . . . . 25 . . Level 5 . | . . . . . . . High Security . | . . . . . . . Max Security . | . . . . . . . Squads Dispatched 22 | . 2 . 2 18 . . Investigation 5 | . 1 . 1 3 . . Extermination 5 | . . . . 5 . . Reinforcement 8 | . 1 . 1 6 . . Assault 4 | . . . . 4 . . Garrison . | . . . . . . . Intercept . | . . . . . . . Searches Triggered . | . . . . . . . Construction Impeded 4 | . . . 1 3 . . Haulers Reinforced . | . . . . . . . Active Scanning Responses . | . . . . . . . Cargo Convoy Interrupts 1 | . . . . 1 . . Stealth | -11 -10 -9 -8 -7 -7 -7 --------- Run | Yrd Mat Mat Mat Fac Was Fac Distress Signals 9 | . 1 1 4 3 . . Communications Jammed . | . . . . . . . Distress Signals . | . . . . . . . Times Spotted 183 | . 19 10 41 104 6 3 Peak Tracking Total 14 | . 4 4 7 14 6 3 Tactical Retreats 3 | . . 1 1 1 . . Traps | -11 -10 -9 -8 -7 -7 -7 ------- Run | Yrd Mat Mat Mat Fac Was Fac Traps Triggered 5 | . 1 . 1 3 . . Indirectly . | . . . . . . . Trap Hack Attempts . | . . . . . . . Triggered . | . . . . . . . Disarmed . | . . . . . . . Reprogrammed . | . . . . . . . Reused . | . . . . . . . Traps Extracted . | . . . . . . . Installed . | . . . . . . . Triggered . | . . . . . . . Machines | -11 -10 -9 -8 -7 -7 -7 ---------- Run | Yrd Mat Mat Mat Fac Was Fac Machines Disabled 17 | . . . 1 16 . . Max in Single Turn 3 | . . . 1 3 . . Machines Repaired . | . . . . . . . Machines Dismantled 2 | . . . . 2 . . Machines Sabotaged . | . . . . . . . Overloaded Fab Kills . | . . . . . . . Hacking | -11 -10 -9 -8 -7 -7 -7 --------- Run | Yrd Mat Mat Mat Fac Was Fac Machines Accessed 21 | . 3 4 6 8 . . Terminals 12 | . 3 3 3 3 . . Fabricators 4 | . . . . 4 . . Repair Stations 3 | . . . 2 1 . . Recycling Units 1 | . . 1 . . . . Scanalyzers 1 | . . . 1 . . . Garrison Access . | . . . . . . . Total Hacks 59 | . 10 11 14 24 . . Successful 30 | . 4 7 9 10 . . Failed 29 | . 6 4 5 14 . . Catastrophic 7 | . 1 2 3 1 . . Database Lockouts . | . . . . . . . Manual 31 | . 10 8 5 8 . . Terminals 34 | . 10 8 5 11 . . Fabricators 8 | . . . . 8 . . Repair Stations 9 | . . . 4 5 . . Recycling Units 3 | . . 3 . . . . Scanalyzers 5 | . . . 5 . . . Garrison Access . | . . . . . . . Terminal Hacks 6 | . 1 3 . 2 . . Terminal Index 2 | . . 1 . 1 . . Unreport Threat 4 | . 1 2 . 1 . . Fabricator Hacks 4 | . . . . 4 . . Network Status 1 | . . . . 1 . . Build 3 | . . . . 3 . . Repair Station Hacks 7 | . . . 4 3 . . Scan Component 4 | . . . 2 2 . . Repair 3 | . . . 2 1 . . Recycling Unit Hacks 1 | . . 1 . . . . Report Inventory 1 | . . 1 . . . . Scanalyzer 3 | . . . 3 . . . Insert Component 1 | . . . 1 . . . Analyze 2 | . . . 2 . . . Garrison Access Hacks . | . . . . . . . Unauthorized Hacks 9 | . 3 3 2 1 . . Terminals 9 | . 3 3 2 1 . . Assimilate 1 | . 1 . . . . . Botnet 8 | . 2 3 2 1 . . Fabricators . | . . . . . . . Repair Stations . | . . . . . . . Recycling Units . | . . . . . . . Scanalyzers . | . . . . . . . Garrison Access . | . . . . . . . Data Cores Recovered . | . . . . . . . Used . | . . . . . . . Hacking Detections 20 | . 3 4 6 7 . . Full Trace Events 2 | . . . . 2 . . Feedback Events . | . . . . . . . Feedback Blocked . | . . . . . . . Robot Schematics Acquired . | . . . . . . . Robots Built 1 | . . . . 1 . . Authchips . | . . . . . . . Time 58 | . . . . 58 . . Total Robot Build Rating 3 | . . . . 3 . . Part Schematics Acquired 1 | . . . 1 . . . Parts Built 1 | . . . . 1 . . Authchips . | . . . . . . . Time 159 | . . . . 159 . . Total Part Build Rating 6 | . . . . 6 . . Parts Repaired 3 | . . . 2 1 . . Time 117 | . . . 64 53 . . Parts Recycled . | . . . . . . . Recycled Matter . | . . . . . . . Retrieved Matter . | . . . . . . . Retrieved Components . | . . . . . . . Parts Scanalyzed 1 | . . . 1 . . . Part Schematics Acquired 1 | . . . 1 . . . Parts Damaged . | . . . . . . . Bothacking | -11 -10 -9 -8 -7 -7 -7 ------------ Run | Yrd Mat Mat Mat Fac Was Fac Used RIF Installer . | . . . . . . . Robots Hacked . | . . . . . . . Non-combat . | . . . . . . . Combat . | . . . . . . . Robot Hacks Applied . | . . . . . . . Relay Couplers Released . | . . . . . . . Fabnet Peak Effective % . | . . . . . . . Robots Rewired 1 | . . . . 1 . . Allies Hacked . | . . . . . . . Hacks Repelled . | . . . . . . . Allies | -11 -10 -9 -8 -7 -7 -7 -------- Run | Yrd Mat Mat Mat Fac Was Fac Total Allies 3 | . . . . 2 1 . Largest Group 2 | . . . . 2 1 . Highest-Rated Group 66 | . . . . 66 31 . Highest-Rated Ally 34 | . . . . 34 31 . Total Orders 2 | . . . . 2 . . AID 2 | . . . . 2 . . Ally Attacks 28 | . . . . 14 14 . Total Damage 975 | . . . . 677 298 . Kills 8 | . . . . 8 . . Allies Corrupted . | . . . . . . . Allies Melted . | . . . . . . . Intel | -11 -10 -9 -8 -7 -7 -7 ------- Run | Yrd Mat Mat Mat Fac Was Fac Robot Analysis Total . | . . . . . . . Derelict Logs Recovered . | . . . . . . . Drone Launches . | . . . . . . . Drone Recoveries . | . . . . . . . Exploration | -11 -10 -9 -8 -7 -7 -7 ------------- Run | Yrd Mat Mat Mat Fac Was Fac Turns Passed 4952 | . 453 377 1222 2577 175 148 Spaces Moved 2299 | 1 303 230 443 1106 137 79 Core . | . . . . . . . Treads 1333 | . . 1 324 928 1 79 Legs 190 | 1 189 . . . . . Wheels 314 | . . . . 178 136 . Hover 462 | . 114 229 119 . . . Flight . | . . . . . . . Fastest Speed 56 | 120 56 96 72 115 115 165 Average Speed 147 | 120 107 96 181 157 119 165 Slowest Speed 250 | 120 190 170 250 250 162 165 Overloaded Moves . | . . . . . . . Propulsion Burnouts . | . . . . . . . Robots Hopped . | . . . . . . . Cave-ins Triggered . | . . . . . . . Exploration Rate (%) 37 | 2 70 20 46 43 75 3 Regions Visited 6 Branch Regions . Pre-discovered Areas . | . . . . . . . Known Exits Taken . | . . . . . . . Unknown Exits Taken 4 | 1 1 1 1 . . . Scrap Searched . | . . . . . . . Spaces Dug . | . . . . . . . Terrain Destroyed 244 | . 43 . 12 185 2 2 Melee . | . . . . . . . Projectile 110 | . . . . 106 2 2 AOE 134 | . 43 . 12 79 . . Terrain Rammed . | . . . . . . . Walls Destroyed . | . . . . . . . Machines Disabled . | . . . . . . . Actions | -11 -10 -9 -8 -7 -7 -7 --------- Run | Yrd Mat Mat Mat Fac Was Fac Total 3233 | . 374 321 688 1614 145 91 Wait 318 | . 5 17 85 208 . 3 Move 2294 | . 302 229 442 1106 136 79 Hop . | . . . . . . . Pick Up 64 | . 7 6 15 33 2 1 Fast Attach 48 | . 5 4 13 23 3 . Attach 38 | . 3 2 11 18 1 3 Detach 1 | . 1 . . . . . Swap 39 | . 2 7 13 16 . 1 Drop 58 | . 7 12 13 24 2 . Fire 320 | . 42 44 94 135 1 4 Melee . | . . . . . . . Ram . | . . . . . . . Kick . | . . . . . . . Crush 4 | . . . 2 2 . . Escape Stasis . | . . . . . . . Rewire 18 | . . . . 18 . . Trap . | . . . . . . . Miscellaneous 31 | . . . . 31 . . Route ------- -11/Scrapyard -10/Materials (discovered 4 exits: *Mat x2 / [*Min x2]) -9/Materials -8/Materials -7/Factory -7/Waste -7/Factory History --------- Turn | Location | Event 1 | -11/Scrapyard | Discovered new exit (range 0) 1 | -11/Scrapyard | Entered Materials 67 | -10/Materials | Discovered new exit (range 15) 145 | -10/Materials | Lost 3 parts (1p1n1w) 208 | -10/Materials | Discovered new exit (range 6) 300 | -10/Materials | Discovered new exit (range 12) 397 | -10/Materials | Discovered new exit (range 16) 454 | -10/Materials | Entered another Materials area 454 | -9/Materials | Evolved 2 slots: Propulsion x2 660 | -9/Materials | Discovered new exit (range 15) 828 | -9/Materials | Build established: Mutant 831 | -9/Materials | Entered another Materials area 831 | -8/Materials | Evolved 2 slots: Power x1, Utility x1 897 | -8/Materials | Repaired Lgt. Ion Engine 982 | -8/Materials | Lost 3 parts (1n2u) 1069 | -8/Materials | Lost 4 parts (1p2n1w) 1158 | -8/Materials | Lost 5 parts (2p2n1w) 1395 | -8/Materials | Build established: Scavenger-Mutant 1666 | -8/Materials | Repaired Arm. Treads 1744 | -8/Materials | Build established: Mutant 2033 | -8/Materials | Discovered new exit (range 5) 2053 | -8/Materials | Entered Factory 2053 | -7/Factory | Evolved 2 slots: Weapon x2 2317 | -7/Factory | Repaired Broken Arm. Treads 2360 | -7/Factory | Build established: Scavenger-Gunner 2485 | -7/Factory | Fabricated D-53 Grenadier (x1) 3063 | -7/Factory | Build established: Scavenger-Tank 3068 | -7/Factory | Cargo convoy interrupted 3134 | -7/Factory | Lost 11 parts (3p3n1u4w) 3183 | -7/Factory | Lost 3 parts (1n2w) 3212 | -7/Factory | Core integrity fell below 50% 3253 | -7/Factory | First assault squad dispatched 3796 | -7/Factory | Build established: Gunner 4001 | -7/Factory | Core integrity fell below 20% 4160 | -7/Factory | Fabricated Mni. Drone Bay (x1) 4606 | -7/Factory | Build established: Tank 4630 | -7/Factory | Sucked down chute 4630 | -7/Factory | Entered Waste 4631 | -7/Waste | Met a frightened Derelict 4645 | -7/Waste | EMP discharged 4645 | -7/Waste | System corruption reached 10% 4647 | -7/Waste | Spotted C-40 Crusher 4662 | -7/Waste | Crushed by Compactor (1 part destroyed, 2 dropped) 4683 | -7/Waste | Spotted C-40 Crusher 4687 | -7/Waste | Spotted C-40 Crusher 4696 | -7/Waste | Crushed by Compactor (1 part destroyed, 1 dropped) 4699 | -7/Waste | Crushed by Compactor (1 part destroyed) 4701 | -7/Waste | Spotted C-40 Crusher 4721 | -7/Waste | Spotted C-40 Crusher 4740 | -7/Waste | Spotted C-40 Crusher 4745 | -7/Waste | EMP discharged 4794 | -7/Waste | Discovered new exit (range 11) 4805 | -7/Waste | Entered Factory 4953 | -7/Factory | Destroyed by S-27 Virus with Autogun Last Messages --------------- 04869_ K-01 Serf cleans the Manufacturing Mainframe. 04890_ System corrupted: Substantial component data lost. 04906_ System corrupted: Matter fused (-5). 04923_ System corrupted: IFF burst signal emitted. 04941_ C-30 ARC bursts open, deploying its payload. 04941_ S-27 Virus unfolds itself. 04941_ ALERT: All DSF locations entering lockdown mode. 04942_ System corrupted: Matter fused (-6). 04950_ Slug penetrates S-27 Virus. 04950_ Destroyed VTOL Module. 04950_ S-27 Virus destroyed. 04953_ Slug penetrates S-27 Virus. 04953_ S-27 Virus destroyed. 04953_ Switching to secondary target: S-27 Virus. Map ----- +----------------------------------------------------+ | ?????????????????????????????????????????????????? | | ?????????????????????????????????????????????????? | | ?????????????????????????????????????????????????? | | ?????????????????????????????????????????????????? | | ?????????????????????????????????????????????????? | | ?????????????????????????????????????????????????? | | ????????????????????????????????????????####???#?? | | ????????????????????????????????????????# ! ??? ?? | | ????????????????????????????????????????# ?? ?? | | ????????????????????????????????????????# """" "? | | ????????????????????????????????????????# """" "" | | ????????????????????????????????????????# """" "" | | ????????????????????????????????????????# """" "" | | ????????????????????????????????????????# | | ????????????????????????????????????????# """" "" | | ????????????????????????????????????????# """" "" | | ?????????????????????#########??????????# """" "" | | ?????????????????????# ??????????# """" "" | | ?????????????????????# #?????????# | | ?????????????????????# =!! #?????###########+## | | ?????????????????????# =! #?????# | | ?????????????????????# !! #?????# | | ?????????????????????# """ #?????# | | ?????????????????????#[ """ #?????# | | ?????????????????????# """ #?????# | | ?????????????????????# @= #?????# ######## | | ?????????????????????####;+%######### #??????? | | ??????????????????????# #??????? | | ??????????????????????# %[ #??????? | | ??????????????????????# s """ """ #??????? | | ??????????????????????# """ """ """ #??????? | | ??????????????????????#! """ [ """ """ #??????? | | ??????????????????????# """ #??????? | | ??????????????????????# """ """ #??????? | | ??????????????? % """ """ """ #??????? | | ???????????????? """ """ """ #??????? | | ??????????????? """ #??????? | | ???????????????? ? """ """ #??????? | | ??????????????????? """ ""? #??????? | | ??????????????????#+########## """ ""? #??????? | | ?????????????????????????????? ?? #??????? | | ?????????????????????????????? """ ?????????????? | | ?????????????????????????????? ""? ?????????????? | | ?????????????????????????????? ""???????????????? | | ?????????????????????????????? ????????????????? | | ?????????????????????????????? ????????????????? | | ??????????????????????????????###????????????????? | | ?????????????????????????????????????????????????? | | ?????????????????????????????????????????????????? | | ?????????????????????????????????????????????????? | +----------------------------------------------------+ Best States ------------- Heat Dissipation 70 Energy Generation 30 Energy Capacity 475 Matter Stores 300 Matter Capacity 300 Sight Range 16 Terrain Scan Density 10 Armor Coverage 225 Evasion (%) 55 Recoil Reduction 4 Item Schematics ----------------- Enh. Autogun | -8/Materials | Scanalyzed Robot Schematics ------------------ None Fabricated ------------ D-53 Grenadier | x1 | -7/Factory | Preloaded Mni. Drone Bay | x1 | -7/Factory | Preloaded Alien Tech Used ----------------- None Achievements -------------- None Challenges ------------ None Game ------ Seed FrostTransmissionBeamcaster Manual? 0 Play Time 00:42:23 Cumulative 141.5 hours Start 2024.05.01 @ 14:06:57 End 2024.05.01 @ 14:50:54 Sessions 1 Manual Loads 0 Difficulty Rogue Special Mode None Game No. 273 Rogue 273 Adventurer 0 Explorer 0 Win Type - Total 0 Types 0/0/0/0/0/0/0/0/0 Lore% 35 Gallery% 49 Achievement% 34 Wizard Run 0 Options --------- Layout 1 ASCII 0 Keyboard 0 Movement Mouse Keybinds 0 Fullscreen 1 Font 24/Smallcaps Map View 50x40 Zoom Use 0% Tactical HUD 1 Map Filters NONE Filters NONE Steam 1 RUN: 4aacd420-b442-44c5-90af-20af724dab73